Cogmind - Beta 9.1 *** ADVENTURER MODE // 2019.11.05 @ 21:45:03 Player: Tenebrous Result: Destroyed by Y-54 Guardian with Flak Gun Performance ------------- Evolutions (3) 1500 Regions Visited (5) 1000 Robots Destroyed (61) 305 Value Destroyed (2456) 2456 Prototype IDs (1) 20 Alien Tech Used (0) 0 Bonus (66) 66 TOTAL SCORE: 5347 Bonus ------- High Alert Combat Kills 66 Cogmind --------- Core Integrity 0/700 Matter 249/300 Energy 100/100 System Corruption 2% Temperature Cool (0) Location -7/Lower Caves Parts ------- Power (2) Propulsion (3) Utility (4) Large Storage Unit Weapon (4) Inventory (10) Visual Processing Unit Advanced Signal Interpreter Targeting Computer Light Armor Plating Remote Datajack Peak State ------------ Power Light Nuclear Core Light Nuclear Core Propulsion Xenon Bombardment Thruster Xenon Bombardment Thruster Xenon Bombardment Thruster Utility Large Storage Unit Large Storage Unit Enhanced Optical Array Advanced Signal Interpreter Weapon Advanced Beam Rifle Advanced Beam Rifle Gauss Rifle Gauss Rifle Inventory Light Deuterium Engine Visual Processing Unit Advanced Signal Interpreter Targeting Computer Light Armor Plating Hacking Suite Heavy EM Pulse Gun Advanced Beam Rifle Advanced Beam Rifle High-powered Shotgun Gauss Rifle Mini Grenade Launcher Mini Grenade Launcher Heavy Rocket Launcher [Rating: 46] Favorites ----------- Power Light Nuclear Core Engine Light Ion Engine Power Core Light Nuclear Core Propulsion Hover Unit Wheel Compact Wheel Hover Unit Hover Unit Flight Unit Xenon Bombardment Thruster Utility Large Storage Unit Device Improved Sensor Array Storage Large Storage Unit Processor Advanced Signal Interpreter Hackware Hacking Suite Weapon Advanced Beam Rifle Energy Gun Advanced Beam Rifle Energy Cannon Particle Cannon Ballistic Gun High-powered Shotgun Launcher Mini Grenade Launcher Build | -11 -10 -9 -8 -7 -7 ------- Run | Scr Mat Mat Mat Fac Low Slots Evolved 6 | . . 2 2 2 . Power 1 | . . . . 1 . Propulsion 1 | . . . 1 . . Utility 2 | . . 1 1 . . Weapon 2 | . . 1 . 1 . Parts Attached 84 | 6 7 19 12 36 4 Power 11 | 1 1 2 1 5 1 Engine 6 | 1 1 2 1 1 . Core 5 | . . . . 4 1 Reactor . | . . . . . . Propulsion 33 | 2 2 7 5 16 1 Treads . | . . . . . . Leg . | . . . . . . Wheel 2 | 2 . . . . . Hover 18 | . 2 5 5 5 1 Flight 13 | . . 2 . 11 . Utility 13 | 1 3 3 2 3 1 Device 5 | . 2 1 . 2 . Storage 3 | 1 1 . 1 . . Processor 4 | . . 2 1 1 . Hackware 1 | . . . . . 1 Protection . | . . . . . . Artifact . | . . . . . . Weapon 27 | 2 1 7 4 12 1 Energy Gun 11 | 1 . 3 1 5 1 Energy Cannon 1 | . . . 1 . . Ballistic Gun 11 | 1 1 4 . 5 . Ballistic Cannon . | . . . . . . Launcher 4 | . . . 2 2 . Special Weapon . | . . . . . . Impact Weapon . | . . . . . . Slashing Weapon . | . . . . . . Piercing Weapon . | . . . . . . Special Melee Weapon . | . . . . . . Unidentified Prototypes 1 | . . . . 1 . Parts Lost 31 | . 2 1 6 14 8 Power 5 | . 1 . 1 2 1 Propulsion 9 | . . . 2 6 1 Utility 6 | . 1 . . 2 3 Weapon 11 | . . 1 3 4 3 Highest Loss Streak 7 | . 2 1 4 7 5 Average Slot Usage (%) 85 | . 96 98 84 91 17 Engine 4 | . 13 11 7 . . Core 6 | . . . . 11 . Hover 12 | . 22 22 24 7 1 Flight 6 | . . . . 11 . Device 6 | . 11 11 9 3 3 Storage 13 | . 14 11 17 13 7 Processor 7 | . . 11 9 9 . Energy Gun 10 | . 2 10 3 14 . Ballistic Gun 12 | . 25 21 3 10 . Launcher 2 | . . . 7 3 2 Naked Turns . | . . . . . . Heaviest Build 56 | 10 23 28 46 56 30 Greatest Support 27 | 26 26 18 27 21 8 Greatest Overweight (x) 11 | . 1 3 11 7 9 Average Overweight (x) 1 | . . 1 1 2 4 Largest Inventory Capacity 16 | 6 10 10 16 16 10 Average Capacity 13 | 5 7 10 15 15 10 Most Carried 15 | 2 10 10 10 15 7 Average Carried 9 | 1 6 9 7 11 5 Final Capacity 16 | 6 10 10 16 10 10 Final Carried 10 | 2 10 10 6 8 5 Class Distribution -------------------- 52% | Skirmisher 31% | Mutant 10% | Bomber 5% | Gunner Dominant Class ---------------- Mutant | -10/Materials Skirmisher | -9/Materials Mutant | -8/Materials Skirmisher | -7/Factory Mutant | -7/Lower Caves Resources | -11 -10 -9 -8 -7 -7 ----------- Run | Scr Mat Mat Mat Fac Low Matter Collected 1476 | 215 256 171 245 555 34 Remotely . | . . . . . . Salvage Created 2230 | . 328 351 676 830 45 Parts 124 | . 23 24 30 45 2 Haulers Intercepted . | . . . . . . Recyclers Shooed 1 | . . . 1 . . Parts Field Recycled . | . . . . . . Retrieved Matter . | . . . . . . Parts Self-Destructed 2 | . . . . . 2 Prevented 1 | . . . . . 1 Kills | -11 -10 -9 -8 -7 -7 ------- Run | Scr Mat Mat Mat Fac Low Combat Hostiles Destroyed 50 | . 7 7 16 19 1 Guns 26 | . 7 7 3 9 . Cannons 3 | . . . 3 . . AOE 21 | . . . 10 10 1 Classes Destroyed 13 | . 2 2 5 4 . Worker 2 | . . . 2 . . Builder 1 | . . . . 1 . Tunneler 1 | . . . 1 . . Recycler 2 | . . . 1 1 . Watcher 5 | . 2 1 . 2 . Swarmer 6 | . . . . 6 . Grunt 27 | . 7 4 10 5 1 Brawler 1 | . . 1 . . . Duelist 1 | . . . 1 . . Protector 1 | . . . 1 . . Sentry 9 | . . 2 4 3 . Hunter 1 | . . . . 1 . Programmer 4 | . . . . 4 . Best Kill Streak 6 | . 2 4 6 4 1 Combat Bots Only 5 | . 2 4 5 4 1 Max Kills in Single Turn 3 | . 1 1 3 3 1 Gunslinging . | . . . . . . Exploded 3 | . . . 3 3 1 Melee . | . . . . . . Uniques/NPCs Destroyed . | . . . . . . Combat | -11 -10 -9 -8 -7 -7 -------- Run | Scr Mat Mat Mat Fac Low Damage Taken 3119 | . 319 156 608 1190 846 Core 893 | . 41 9 140 183 520 Absorbed by Shields . | . . . . . . Core Remaining (%) 88 | 100 83 97 74 . . Volleys Fired 114 | . 41 16 22 34 1 Largest 4 | . 2 3 3 4 2 Hottest 244 | . 60 105 133 244 60 Shots Fired 272 | . 82 44 39 105 2 Gun 233 | . 82 44 18 89 . Cannon 11 | . . . 11 . . Launcher 28 | . . . 10 16 2 Special . | . . . . . . Kinetic 134 | . 69 32 6 27 . Thermal 101 | . 13 12 23 53 . Explosive 28 | . . . 10 16 2 Electromagnetic 9 | . . . . 9 . Robot Hit Streak 33 | . 17 33 19 11 . Robot Miss Streak 5 | . 2 1 1 5 . Penetration Max 1 | . . . . 1 . Secondary Targets 2 | . 1 1 . . . Max Gunslinging Chain 1 | . 1 1 . . . Shots Hit Robots 190 | . 64 32 31 63 . Core Hits 122 | . 17 15 38 47 5 Critical Hits 1 | . . 1 . . . Critical Kills 1 | . . 1 . . . Critical Parts Destroyed . | . . . . . . Melee Attacks . | . . . . . . Impact . | . . . . . . Slashing . | . . . . . . Piercing . | . . . . . . Sneak Attacks . | . . . . . . Combat Hostiles . | . . . . . . Follow-up Attacks . | . . . . . . Damage Inflicted 4811 | . 578 369 1671 2092 101 Guns 2488 | . 578 369 227 1314 . Cannons 183 | . . . 183 . . Explosions 2140 | . . . 1261 778 101 Melee . | . . . . . . Ramming . | . . . . . . Kinetic 1050 | . 470 188 32 360 . Thermal 1592 | . 108 181 378 925 . Explosive 1993 | . . . 1261 631 101 Electromagnetic 176 | . . . . 176 . Impact . | . . . . . . Slashing . | . . . . . . Piercing . | . . . . . . Highest Corruption 2 | . . . . 2 2 Average Corruption 1 | . . . . 1 2 Corruption Purged . | . . . . . . Effects 11 | . . . . 5 6 Message Errors 6 | . . . . 1 5 Heat Flow Errors 1 | . . . . 1 . Data Loss (minor) 3 | . . . . 2 1 Targeting Errors 1 | . . . . 1 . Overload Shots . | . . . . . . Overflow Damage 82 | . . . 9 73 . Projectiles . | . . . . . . Explosions 82 | . . . 9 73 . Melee . | . . . . . . Knockbacks . | . . . . . . Impact . | . . . . . . Kinetic . | . . . . . . Secondary . | . . . . . . Self-Inflicted Damage 277 | . . . 73 204 . Shots 10 | . . . 4 6 . Rammed . | . . . . . . Targets Rammed . | . . . . . . Kicked . | . . . . . . Crushed . | . . . . . . Highest Temperature 589 | . 100 252 333 589 . Average Temperature 124 | . 26 79 115 163 . Received Heat Transfer 1047 | . 240 75 198 216 318 Effects 9 | . . . . 9 . Shutdowns 5 | . . . . 5 . Energy Bleed 1 | . . . . 1 . Short Circuit 2 | . . . . 2 . Damage (minor) 1 | . . . . 1 . Siege Activations . | . . . . . . Robots Corrupted . | . . . . . . Combat Hostiles . | . . . . . . Parts Fried 1 | . . . . 1 . Impact Corruptions . | . . . . . . Robots Melted . | . . . . . . Combat Hostiles . | . . . . . . Parts Melted 13 | . . . 6 7 . Heat Transferred 2931 | . 250 444 768 1469 . Parts Sabotaged . | . . . . . . Parts Stolen . | . . . . . . Parts Stripped . | . . . . . . Power Chain Reactions 2 | . . . . 2 . Missiles Intercepted . | . . . . . . Alert | -11 -10 -9 -8 -7 -7 ------- Run | Scr Mat Mat Mat Fac Low Peak Influence 552 | . 120 155 552 164 . Average Influence 91 | . 52 77 326 60 . Maximum Alert Level 2 | . . . 2 . . Low Security (%) 91 | . . . . . . Level 1 4 | . . . . . . Level 2 4 | . . . . . . Level 3 . | . . . . . . Level 4 . | . . . . . . Level 5 . | . . . . . . High Security . | . . . . . . Max Security . | . . . . . . Squads Dispatched 15 | . 1 2 5 7 . Investigation 3 | . 1 . 1 1 . Extermination 4 | . . . . 4 . Reinforcement 5 | . . 2 1 2 . Assault 1 | . . . 1 . . Garrison 2 | . . . 2 . . Intercept . | . . . . . . Construction Impeded 1 | . . . 1 . . Haulers Reinforced . | . . . . . . Stealth | -11 -10 -9 -8 -7 -7 --------- Run | Scr Mat Mat Mat Fac Low Distress Signals 2 | . 2 . . . . Communications Jammed . | . . . . . . Distress Signals . | . . . . . . Times Spotted 65 | . 11 10 14 27 3 Peak Tracking Total 5 | . 3 3 5 4 3 Tactical Retreats 1 | . . . . . 1 Traps | -11 -10 -9 -8 -7 -7 ------- Run | Scr Mat Mat Mat Fac Low Traps Triggered 8 | . 1 4 . 3 . Indirectly . | . . . . . . Trap Hack Attempts . | . . . . . . Triggered . | . . . . . . Disarmed . | . . . . . . Reprogrammed . | . . . . . . Reused . | . . . . . . Traps Extracted . | . . . . . . Installed . | . . . . . . Triggered 3 | . . . . . 3 Machines | -11 -10 -9 -8 -7 -7 ---------- Run | Scr Mat Mat Mat Fac Low Machines Disabled 8 | . . . 2 6 . Max in Single Turn 1 | . . . 1 1 . Garrison Access 1 | . . . 1 . . Machines Sabotaged . | . . . . . . Garrisons Compromised . | . . . . . . Overloaded Fab Kills . | . . . . . . Fab Network Shutdowns . | . . . . . . Hacking | -11 -10 -9 -8 -7 -7 --------- Run | Scr Mat Mat Mat Fac Low Machines Accessed 11 | . 3 2 2 4 . Terminals 7 | . 3 1 2 1 . Fabricators 1 | . . . . 1 . Repair Stations 1 | . . 1 . . . Recycling Units 1 | . . . . 1 . Scanalyzers 1 | . . . . 1 . Garrison Access . | . . . . . . Total Hacks 27 | . 7 4 6 10 . Successful 20 | . 5 1 5 9 . Failed 7 | . 2 3 1 1 . Catastrophic . | . . . . . . Database Lockouts . | . . . . . . Manual . | . . . . . . Terminals 16 | . 7 1 6 2 . Fabricators 1 | . . . . 1 . Repair Stations 3 | . . 3 . . . Recycling Units 5 | . . . . 5 . Scanalyzers 2 | . . . . 2 . Garrison Access . | . . . . . . Terminal Hacks 12 | . 5 . 5 2 . Record 8 | . 4 . 4 . . Alert Level 2 | . . . 1 1 . Maintenance Status 1 | . . . . 1 . Patrol Status 1 | . 1 . . . . Fabricator Hacks 1 | . . . . 1 . Network Status 1 | . . . . 1 . Repair Station Hacks 1 | . . 1 . . . Scan Component 1 | . . 1 . . . Recycling Unit Hacks 4 | . . . . 4 . Recycle Component 2 | . . . . 2 . Process 1 | . . . . 1 . Report Inventory 1 | . . . . 1 . Scanalyzer 2 | . . . . 2 . Insert Component 1 | . . . . 1 . Analyze 1 | . . . . 1 . Garrison Access Hacks . | . . . . . . Unauthorized Hacks . | . . . . . . Terminals . | . . . . . . Fabricators . | . . . . . . Repair Stations . | . . . . . . Recycling Units . | . . . . . . Scanalyzers . | . . . . . . Garrison Access . | . . . . . . Data Cores Recovered . | . . . . . . Used . | . . . . . . Hacking Detections 8 | . 3 2 2 1 . Full Trace Events 3 | . . . 2 1 . Feedback Events . | . . . . . . Feedback Blocked . | . . . . . . Robot Schematics Acquired . | . . . . . . Robots Built . | . . . . . . Matter . | . . . . . . Time . | . . . . . . Total Robot Build Rating . | . . . . . . Part Schematics Acquired 1 | . . . . 1 . Parts Built . | . . . . . . Matter . | . . . . . . Time . | . . . . . . Total Part Build Rating . | . . . . . . Parts Repaired . | . . . . . . Time . | . . . . . . Parts Recycled 2 | . . . . 2 . Recycled Matter 31 | . . . . 31 . Retrieved Matter . | . . . . . . Retrieved Components . | . . . . . . Parts Scanalyzed 1 | . . . . 1 . Part Schematics Acquired 1 | . . . . 1 . Parts Damaged . | . . . . . . Bothacking | -11 -10 -9 -8 -7 -7 ------------ Run | Scr Mat Mat Mat Fac Low Used RIF Installer . | . . . . . . Robots Hacked . | . . . . . . Non-combat . | . . . . . . Combat . | . . . . . . Robot Hacks Applied . | . . . . . . Relay Couplers Released 6 | . . . 2 4 . Machine Destruction 2 | . . . 2 . . Programmers 4 | . . . . 4 . Robots Rewired . | . . . . . . Allies Hacked . | . . . . . . Hacks Repelled . | . . . . . . Allies | -11 -10 -9 -8 -7 -7 -------- Run | Scr Mat Mat Mat Fac Low Total Allies . | . . . . . . Largest Group . | . . . . . . Highest-Rated Group . | . . . . . . Highest-Rated Ally . | . . . . . . Total Orders . | . . . . . . Ally Attacks . | . . . . . . Total Damage . | . . . . . . Kills . | . . . . . . Allies Corrupted . | . . . . . . Allies Melted . | . . . . . . Intel | -11 -10 -9 -8 -7 -7 ------- Run | Scr Mat Mat Mat Fac Low Robot Analysis Total . | . . . . . . Derelict Logs Recovered 1 | . . . . . 1 Drone Launches . | . . . . . . Drone Recoveries . | . . . . . . Exploration | -11 -10 -9 -8 -7 -7 ------------- Run | Scr Mat Mat Mat Fac Low Turns Passed 5286 | 56 624 628 558 3002 418 Spaces Moved 2624 | 44 486 384 238 1352 120 Core 99 | 5 . . 3 . 91 Treads . | . . . . . . Legs . | . . . . . . Wheels 98 | 39 59 . . . . Hover 1617 | . 427 384 235 542 29 Flight 810 | . . . . 810 . Fastest Speed 50 | 50 56 116 112 112 180 Average Speed 163 | 85 76 132 123 203 282 Slowest Speed 600 | 90 116 240 600 600 500 Overloaded Moves . | . . . . . . Propulsion Burnouts . | . . . . . . Robots Hopped . | . . . . . . Cave-ins Triggered . | . . . . . . Exploration Rate (%) 26 | 5 61 28 17 32 16 Regions Visited 5 Branch Regions 1 Pre-discovered Areas . | . . . . . . Known Exits Taken 2 | . . 1 1 . . Unknown Exits Taken 3 | 1 1 . . 1 . Scrap Searched . | . . . . . . Spaces Dug . | . . . . . . Terrain Destroyed 193 | . . . 66 121 6 Melee . | . . . . . . Projectile . | . . . . . . AOE 193 | . . . 66 121 6 Actions | -11 -10 -9 -8 -7 -7 --------- Run | Scr Mat Mat Mat Fac Low Total 3386 | 62 661 470 465 1528 200 Wait 469 | 5 111 35 186 59 73 Move 2619 | 43 485 383 237 1351 120 Hop . | . . . . . . Pick Up 70 | 8 14 8 7 32 1 Fast Attach 11 | . . 8 . 3 . Attach 40 | 6 3 3 9 15 4 Detach 1 | . . . . 1 . Swap 33 | . 4 8 3 18 . Drop 29 | . 3 9 1 15 1 Fire 114 | . 41 16 22 34 1 Melee . | . . . . . . Ram . | . . . . . . Kick . | . . . . . . Crush . | . . . . . . Escape Stasis . | . . . . . . Rewire . | . . . . . . Trap . | . . . . . . Miscellaneous . | . . . . . . Route ------- -11/Scrapyard -10/Materials (discovered 2 exits: *Mat / [*Min]) -9/Materials -8/Materials -7/Factory (discovered 2 exits: [*Fac] / [*Low]) -7/Lower Caves History --------- Turn | Location | Event 10 | -11/Scrapyard | Discovered new exit (range 15) 57 | -11/Scrapyard | Entered Materials 303 | -10/Materials | Build established: Mutant 341 | -10/Materials | Discovered new exit (range 7) 399 | -10/Materials | Discovered new exit (range 10) 681 | -10/Materials | Entered another Materials area 681 | -9/Materials | Evolved 2 slots: Utility x1, Weapon x1 984 | -9/Materials | Build established: Skirmisher 1233 | -9/Materials | Discovered new exit (range 15) 1273 | -9/Materials | Identified exit to Materials 1309 | -9/Materials | Entered another Materials area 1309 | -8/Materials | Evolved 2 slots: Propulsion x1, Utility x1 1345 | -8/Materials | Garrison activated, responded to threat 1561 | -8/Materials | Lost 4 parts (2n2w) 1700 | -8/Materials | Build established: Mutant 1795 | -8/Materials | Discovered new exit (range 15) 1863 | -8/Materials | Identified exit to Factory 1867 | -8/Materials | Entered Factory 1867 | -7/Factory | Evolved 2 slots: Power x1, Weapon x1 2145 | -7/Factory | Build established: Skirmisher 2710 | -7/Factory | Build established: Bomber 3293 | -7/Factory | Build established: Skirmisher 4467 | -7/Factory | Build established: Gunner 4620 | -7/Factory | Discovered new exit (range 20) 4785 | -7/Factory | Build established: Skirmisher 4821 | -7/Factory | Discovered new exit (range 9) 4852 | -7/Factory | Lost 7 parts (1p2n1u3w) 4869 | -7/Factory | Entered Lower Caves 4912 | -7/Lower Caves | Learned 8 Factory zone layouts 4922 | -7/Lower Caves | Attracted the attention of an 0b10 checkpoint 4944 | -7/Lower Caves | Core integrity fell below 50% 4988 | -7/Lower Caves | Lost 5 parts (1n1u3w) 5119 | -7/Lower Caves | Build established: Mutant 5167 | -7/Lower Caves | Core integrity fell below 20% 5287 | -7/Lower Caves | Destroyed by Y-54 Guardian with Flak Gun Last Messages --------------- 04916_ LW&KHKJ9=SF9IJ9LT2E::0WM 04922_ Y-54 Guardian: "INTERCEPTING UNREGISTERED DERELICT." 04924_ Mni. Grenade Launcher destroyed. 04927_ Imp. Hover Unit destroyed. 04930_ Mni. Grenade Launcher destroyed. 04933_ CKCO&%NVJ4ZCEF KDQ/6UUAJ&Q 04933_ Hvy. EM Pulse Gun destroyed. 04954_ QK-GRP(S) destroyed. 04957_ Lrn. Sensor Array destroyed. 04976_ S-27 Virus destroyed. 04999_ Weapon Cycler destroyed. 05007_ Hacking Suite destroyed. 05012_ 3FXSPYAGR/XE0UT AHSK3CKDJYK LGJV=2DWDV 05049_ JL-961(S) destroyed. 05111_ Acquired 34 matter. 05131_ ES|DXXZ1&#Z#K,#DB72GUROL R/ 05172_ 7=UU:ZET4ELFOM CYM6GVOFL 1PMJBAEM8H 1X8S 05234_ Acquired Neutrino Core. 05256_ System corrupted: Component data lost. 05260_ Neutrino Core destroyed. Map ----- +----------------------------------------------------+ | ?????????????????????????????????????????????????? | | ?????????????????????????????????????????????????? | | ?????????????????????????????????????????????????? | | ?????????????????????????????????????????????????? | | ?????????????????????????????????????????????????? | | ?????????????????????????????????????????????????? | | ???????????????#####?????????????????????????????? | | ??????????????## ##????????????????????????????? | | ??????????????# #????????????????????????????? | | ???????#####??# ######???????????????????????? | | ?????## #?## #???????????????????????? | | ?????# ### = #### #???????????????????????? | | ????## ## ##??# ###?????????????????????? | | ##### ## #??## ###???###?????????????? | | ####### #?## ## #?????????????? | | ######### ## #????????????? | | #### ### #?????????????? | | ######?# ### ## ####?????????????? | | #??????# ## ##?# #? ##????????????????? | | ###????# ### ##??# #?? ##?????????????????? | | #?#### #####???# #??##??? ##????????????? | | ### #??????# #?????? #????????????? | | ! ! %!#??????# #???? ?????????????? | | ##% #??##### #??? #???????????????? | | ##! ##?# ## ### #???????????????? | | ### @ #???????????????? | | # %Y #???????????????? | | # ! #???????????????? | | ## ### ### ## !%! #???????????????? | | ?## ###%! #?###### = ######???????????????? | | ??## ## #??????##### ####????????????????????? | | ???# ##?????????# #???????????????????????? | | ??## ##???????? #??????????????????????? | | ?## #???????? ?????????????????????? | | ## ## ##???????# ???????????????????? | | ## #???????? % #??????????????????? | | ?????? ##??????????????????? | | ## ## ? #???????????????????? | | ?### ##?#######?? ???????????????????? | | ???## ##??????????# ???????????????????? | | ????####????????????# ???????????????????? | | ????????????????????### ####???????????????????? | | ???????????????????????####??????????????????????? | | ?????????????????????????????????????????????????? | | ?????????????????????????????????????????????????? | | ?????????????????????????????????????????????????? | | ?????????????????????????????????????????????????? | | ?????????????????????????????????????????????????? | | ?????????????????????????????????????????????????? | | ?????????????????????????????????????????????????? | +----------------------------------------------------+ Best States ------------- Heat Dissipation 34 Energy Generation 23 Energy Capacity 315 Matter Stores 300 Matter Capacity 300 Sight Range 22 Robot Scan Range 20 Terrain Scan Density 10 Resistance: KI 20 Resistance: TH 20 Resistance: EX 20 Resistance: EM 20 Resistance: I 20 Resistance: S 20 Resistance: P 20 Weapon Cycling 15 Evasion (%) 53 Offensive Hacking 10 Item Schematics ----------------- Visual Processing Unit | -7/Factory | Scanalyzed Robot Schematics ------------------ None Fabricated ------------ Nothing Alien Tech Used ----------------- None Achievements -------------- I Spy Made in Tau Ceti IV Novice Programmer Please Form A Line Troublemaker Challenges ------------ None Game ------ Seed GlidesysSurveybotTerrabomb Manual? 0 Play Time 00:48:08 Cumulative 22.1 hours Start 2019.11.05 @ 20:58:05 End 2019.11.05 @ 21:45:03 Sessions 1 Manual Loads 0 Difficulty Adventurer Special Mode None Game No. 73 Rogue 49 Adventurer 12 Explorer 7 Win Type - Total 0 Types 0/0/0/0/0/0/0 Lore% 3 Gallery% 19 Achievement% 6 Wizard Run 0 Options --------- ASCII 0 Keyboard 0 Movement Mouse Keybinds 0 Fullscreen 1 Font 18/X11 Map View 76x50 Tactical HUD 1 Map Filters NONE Filters NONE Steam 1 RUN: 8db92cfd-ea9c-48b8-abbc-7ab83cff92bb